bitfinex/quotes_ETHUSD_20250823
["timestamp","ask_amount","ask_price","bid_price","bid_amount"]
[1755921161841,0.021,4704.8,4703.7,4.06831796]
[1755921162442,0.021,4704.8,4703.7,4.06826546]
[1755921163420,0.021,4704.8,4703.7,3.3604631]
[1755921163625,0.4531,4705.5,4703.8,0.66]
[1755921163824,0.1064,4705.2,4704.0,0.66]
[1755921164158,0.1064,4705.7,4705.0,0.1064]
[1755921164444,0.1064,4705.7,4705.1,0.1983631]
[1755921164633,0.1064,4705.7,4705.2,0.1983631]
[1755921164813,0.1064,4705.7,4705.3,0.21961573]
[1755921165021,0.1064,4705.7,4705.4,0.1983631]
[1755921165223,0.1064,4705.7,4705.5,0.1983631]
[1755921165418,0.02,4705.8,4705.6,0.19814001]
[1755921165664,0.02,4705.8,4705.7,0.51124001]
[1755921166026,0.02,4705.8,4705.7,0.19814001]
[1755921166226,0.02,4705.8,4705.7,0.30454001]
[1755921167527,0.02,4705.8,4705.7,0.51124001]
[1755921167755,0.02,4705.8,4705.7,0.61764001]
[1755921167962,0.02,4705.8,4705.7,1.06524001]
[1755921168399,0.02,4705.8,4705.7,1.17176401]
[1755921169065,0.02,4705.8,4705.7,0.30454001]
[1755921169269,0.3102,4705.8,4705.7,0.30454001]
[1755921169459,0.02,4705.8,4705.7,0.59534001]
[1755921169694,0.02,4705.8,4705.7,1.05464001]
[1755921170990,0.02,4705.8,4705.7,0.8565]
[1755921171192,0.02,4705.8,4705.7,1.05430316]
[1755921172390,0.02,4705.8,4705.7,1.0542529]
[1755921172708,0.02,4705.8,4705.7,0.5949529]
[1755921173275,0.02,4705.8,4705.7,0.70250336]
[1755921173598,0.02,4705.8,4705.7,0.3041529]
[1755921173778,0.3051,4705.8,4705.7,0.1977529]
[1755921174161,0.02,4705.8,4705.7,0.1977529]
[1755921174382,0.3069,4705.8,4705.7,0.1977529]
[1755921174605,0.02,4705.8,4705.7,0.1977529]
[1755921174761,0.7661,4705.8,4705.7,0.1977529]
[1755921175095,0.8725,4705.8,4705.7,0.1977529]
[1755921177082,0.3086,4705.8,4705.7,0.1977529]
[1755921177387,0.02,4705.8,4705.7,0.4885529]
[1755921177594,0.02,4705.8,4705.7,0.9478529]
[1755921177904,0.02,4705.8,4705.7,1.0542529]
[1755921180009,0.66,4705.7,4701.6,3.82088131]
[1755921180234,0.0028,4701.7,4701.1,0.004]
[1755921180378,1.21377323,4701.6,4701.1,0.004]
[1755921180579,0.1064,4702.0,4701.1,0.1104]
[1755921180994,0.1064,4701.4,4701.1,0.004]
[1755921181306,0.1092,4701.4,4701.1,0.004]
[1755921182569,3.1092,4701.4,4701.1,0.004]
[1755921182768,6.02362756,4701.4,4701.1,0.004]
[1755921183164,3.89660157,4701.4,4701.1,0.004]
[1755921184170,6.02362756,4701.4,4701.1,0.004]
[1755921184493,3.89660157,4701.4,4701.1,0.004]
[1755921184683,6.02362756,4701.4,4701.1,0.004]
[1755921184884,0.1092,4701.4,4701.1,0.004]
[1755921185222,0.1064,4701.4,4701.1,0.004]
[1755921185565,0.1092,4701.4,4701.1,0.004]
[1755921187883,0.1064,4701.4,4701.1,0.004]
[1755921189290,0.1064,4701.4,4701.3,0.7541]
[1755921190291,3.789,4702.2,4701.3,0.7541]
[1755921190477,0.1064,4701.8,4701.3,0.7541]
[1755921190679,0.1064,4701.8,4701.4,0.4593]
[1755921191620,0.1064,4701.8,4701.3,0.004]
[1755921191621,0.1064,4701.8,4701.5,0.4593]
[1755921191977,0.1064,4701.8,4701.6,0.4593]
[1755921192325,0.1064,4701.8,4701.7,0.7501]
[1755921193391,0.1064,4702.5,4701.7,0.8565]
[1755921193720,0.1064,4702.5,4701.8,0.48056845]
[1755921193887,0.1064,4702.5,4702.4,0.2908]
[1755921194087,0.1064,4702.5,4701.8,0.4593]
[1755921194699,0.1064,4702.5,4701.7,0.1064]
[1755921194930,0.1064,4701.8,4701.3,0.004]
[1755921195324,0.1064,4701.8,4701.3,0.4633]
[1755921195938,0.1064,4701.8,4701.3,0.004]
[1755921196101,0.1064,4701.5,4701.3,0.004]
[1755921199539,0.3,4701.4,4701.1,0.004]
[1755921199853,0.66,4701.2,4700.1,0.004]
[1755921200012,2.42747851,4700.4,4700.1,0.004]
[1755921200207,5.719,4700.4,4700.1,0.004]
[1755921201234,5.8472,4700.4,4700.1,0.004]
[1755921203372,6.2986804,4700.4,4700.1,0.004]
[1755921203732,6.1704804,4700.4,4700.1,0.004]
[1755921206462,5.8704804,4700.4,4700.1,0.004]
[1755921206869,6.1687804,4700.4,4700.1,0.004]
[1755921207754,6.2986804,4700.4,4700.1,0.004]
[1755921208360,7.4346432,4700.4,4700.1,0.004]
[1755921209352,6.2986804,4700.4,4699.3,0.004]
[1755921209580,1.13799784,4700.0,4699.3,0.004]
[1755921209778,0.75869517,4700.0,4699.9,0.7298]
[1755921210078,0.5616195,4700.0,4699.9,0.7298]
[1755921212085,0.4552195,4700.0,4699.9,0.7298]
[1755921212397,0.4552788,4700.3,4699.9,0.7298]
[1755921212580,0.1064,4700.5,4699.9,0.7298]
[1755921212581,0.1064,4700.5,4700.0,0.4357]
[1755921212921,0.4553017,4700.4,4700.0,0.4357]
[1755921213108,0.1064,4700.7,4700.3,0.2941]
[1755921213263,0.45535671,4700.6,4700.3,0.2941]
[1755921213469,0.45535671,4700.5,4700.4,0.4357]
[1755921213666,0.45535671,4700.5,4700.4,0.7298]
[1755921216488,0.45535671,4700.6,4700.4,0.7298]
[1755921216699,0.1064,4700.7,4700.4,0.2941]
[1755921217009,0.45550697,4700.6,4700.5,0.4357]
[1755921217503,0.45550697,4700.6,4700.5,0.7298]
[1755921218585,0.45557119,4700.6,4700.5,0.7298]
[1755921219172,0.45557119,4700.6,4699.8,0.5661]
[1755921219371,0.56197119,4700.7,4699.9,0.4357]
[1755921220111,0.56197119,4700.7,4700.0,0.004]
[1755921220299,0.56297119,4700.7,4700.0,0.004]
[1755921221213,0.45557119,4700.6,4700.0,0.004]
[1755921221378,0.1064,4700.3,4700.0,0.004]
[1755921222702,0.1064,4700.3,4700.2,0.2941]
[1755921222909,0.1064,4700.3,4700.2,0.7298]
[1755921223688,0.1064,4700.3,4700.2,0.2941]
[1755921224009,0.45657119,4700.7,4700.2,0.7298]
[1755921224214,0.001,4700.7,4700.3,0.4357]
[1755921224418,0.001,4700.7,4700.6,0.2941]
[1755921225115,0.001,4700.7,4700.6,0.7298]
[1755921227316,0.001,4700.7,4700.6,0.2941]
[1755921227699,0.001,4700.7,4700.6,0.7298]
[1755921230020,0.001,4700.7,4700.0,0.02527659]
[1755921230223,0.001,4700.7,4700.0,1.96540967]
[1755921230390,0.001,4700.7,4700.0,0.4633]
[1755921230717,0.001,4700.7,4700.1,0.02127614]
[1755921230922,0.001,4700.7,4700.1,0.4593]
[1755921232008,0.001,4700.7,4700.0,0.004]
[1755921233412,0.001,4700.7,4700.6,0.3119]
[1755921233614,0.001,4700.7,4700.6,0.7712]
[1755921234647,0.001,4700.7,4700.6,0.3119]
[1755921235543,0.001,4700.7,4700.6,0.7712]
[1755921235899,0.001,4700.7,4700.6,0.3119]
[1755921236315,0.001,4700.7,4700.3,0.1064]
[1755921236725,0.001,4700.7,4700.0,0.4633]
[1755921236895,0.001,4700.7,4700.1,0.1064]
[1755921239318,0.001,4700.7,4700.1,0.1024]
[1755921241328,0.1074,4700.7,4700.1,0.1024]
[1755921242750,0.001,4700.7,4700.6,16.6652289]
[1755921242918,0.001,4701.2,4700.7,0.66]
[1755921243119,0.001,4701.2,4701.1,0.3119]
[1755921243335,0.001,4701.2,4701.1,0.4183]
[1755921243541,0.001,4701.2,4701.1,0.73566]
[1755921243740,0.001,4701.2,4701.1,1.19496]
[1755921243944,0.001,4701.2,4701.1,1.85496]
[1755921244434,0.001,4701.2,4701.1,5.57496]
[1755921246844,0.001,4701.2,4701.1,5.57096]
[1755921250745,0.001,4701.2,4701.1,0.73566]
[1755921250950,0.001,4701.2,4701.1,4.91096]
[1755921253839,0.001,4701.2,4701.1,5.57096]
[1755921255877,0.001,4701.2,4701.1,1.85496]
[1755921256173,0.001,4701.2,4701.1,5.56996]
[1755921257081,0.001,4701.7,4701.2,3.66]
[1755921257244,0.041,4701.8,4701.7,0.66]
[1755921257445,0.041,4701.8,4701.3,1.146356]
[1755921257640,0.099,4701.7,4701.4,3.715]
[1755921259575,0.099,4701.7,4701.1,0.31736]
[1755921259878,0.099,4701.7,4701.2,3.715]
[1755921260174,0.041,4701.8,4701.3,0.4654]
[1755921260374,0.041,4701.8,4701.5,7.22637072]
[1755921260542,0.041,4701.8,4701.6,3.715]
[1755921260745,0.041,4701.8,4701.5,7.22637072]
[1755921260945,0.041,4701.8,4701.6,3.715]
[1755921261376,0.041,4701.8,4701.5,7.22637072]
[1755921261578,0.041,4701.8,4701.6,3.715]
[1755921261785,0.041,4701.8,4701.5,7.22637072]
[1755921262094,0.041,4701.8,4701.7,3.715]
[1755921262258,0.14,4701.8,4701.7,3.715]
[1755921263385,0.041,4701.8,4701.7,3.715]
[1755921264466,0.041,4701.8,4701.2,7.22637072]
[1755921264667,0.298,4701.6,4701.3,3.714]
[1755921265396,0.298,4701.6,4701.2,3.714]
[1755921265687,0.298,4701.6,4701.1,7.22637072]
[1755921265878,0.298,4701.6,4701.3,3.714]
[1755921266658,0.041,4701.8,4701.3,7.69177072]
[1755921266864,0.041,4701.8,4701.4,3.714]
[1755921267091,0.041,4701.8,4701.4,3.8204]
[1755921268492,0.041,4701.8,4700.2,0.1104]
[1755921268493,0.001,4701.5,4700.2,0.004]
[1755921268660,0.3262,4701.4,4700.2,0.004]
[1755921270003,0.3262,4701.4,4700.2,3.718]
[1755921270208,0.0043,4700.3,4700.2,0.004]
[1755921271275,0.3273,4700.3,4700.2,0.004]
[1755921273981,2.45482377,4700.3,4700.2,0.004]
[1755921276102,6.16982377,4700.3,4700.2,0.004]
[1755921278482,6.27622377,4700.3,4700.2,0.004]
[1755921280082,3.8257,4700.3,4700.2,0.004]
[1755921280482,3.821318,4700.3,4700.2,0.004]
[1755921280681,3.916018,4700.3,4700.2,0.004]
[1755921280923,3.809618,4700.3,4700.2,0.004]
[1755921281098,3.916018,4700.3,4700.2,0.004]
[1755921283814,7.305018,4700.3,4700.2,0.004]
[1755921284216,9.43254177,4700.3,4700.2,0.004]
[1755921284400,9.75774177,4700.3,4700.2,0.004]
[1755921286317,6.36874177,4700.3,4700.2,0.004]
[1755921286705,4.241218,4700.3,4700.2,0.004]
[1755921287017,6.36874177,4700.3,4700.2,0.004]
[1755921287620,4.241218,4700.3,4700.2,0.004]
[1755921287914,6.36874177,4700.3,4700.2,0.004]
[1755921288589,4.241218,4700.3,4700.2,0.004]
[1755921288921,3.916018,4700.3,4700.2,0.004]
[1755921289288,6.04354177,4700.3,4700.2,0.004]
[1755921289786,3.916018,4700.3,4700.2,0.004]
[1755921289987,3.821318,4700.3,4700.2,0.004]
[1755921290725,3.821318,4700.3,4700.2,0.2981]
[1755921291021,3.920318,4700.3,4700.2,0.004]
[1755921291325,3.821318,4700.3,4700.2,0.7641]
[1755921292104,3.821318,4700.3,4700.2,0.2981]
[1755921292298,3.821318,4700.3,4700.2,0.004]
[1755921292504,3.920318,4700.3,4700.2,0.004]
[1755921293637,0.1064,4700.8,4700.2,0.7641]
[1755921293789,3.714,4701.1,4700.3,0.466]
[1755921293996,0.1064,4700.4,4700.3,0.466]
[1755921294222,0.1064,4700.4,4700.3,0.7601]
[1755921303844,0.1064,4700.4,4700.2,0.004]
[1755921304020,3.713,4700.3,4700.2,0.004]
[1755921304345,5.7707,4700.3,4700.2,0.004]
[1755921308152,5.6381,4700.3,4700.2,0.004]
[1755921311159,7.76562377,4700.3,4700.2,0.004]
[1755921312523,7.76912377,4700.3,4700.2,0.004]
[1755921313731,7.76562377,4700.3,4700.2,0.004]
[1755921313930,1.636,4700.3,4700.2,0.2981]
[1755921314158,5.4544,4700.3,4700.2,0.7641]
[1755921314387,5.4544,4700.3,4700.2,0.2981]
[1755921314552,5.4544,4700.3,4700.2,0.004]
[1755921315149,5.4544,4700.3,4700.2,0.2981]
[1755921316080,5.4573,4700.3,4700.2,0.004]
[1755921316466,5.4544,4700.3,4700.2,0.004]
[1755921320167,5.4554,4700.3,4700.2,0.004]
[1755921325052,5.5896,4700.3,4700.2,0.004]
[1755921325252,8.9786,4700.3,4700.2,0.004]
[1755921326081,8.8444,4700.3,4700.2,0.004]
[1755921326283,8.8444,4700.3,4700.2,0.7616]
[1755921326284,5.4554,4700.3,4700.2,0.7616]
[1755921328087,5.4554,4700.3,4700.2,0.004]
[1755921328285,5.4554,4700.3,4700.2,0.3087]
[1755921328484,5.4554,4700.3,4700.2,0.7616]
[1755921331752,0.1074,4700.3,4700.2,0.7616]
[1755921331959,0.1074,4700.3,4700.2,1.56408265]
[1755921332154,3.8164,4700.3,4700.2,1.56408265]
[1755921332787,0.1074,4700.3,4700.2,1.58535834]
[1755921333108,0.001,4700.3,4700.2,1.56408265]
[1755921333298,0.001,4700.3,4700.2,1.58535834]
[1755921333956,0.001,4700.3,4700.2,1.56408265]
[1755921334289,0.001,4700.3,4700.2,1.58535834]
[1755921334585,0.001,4700.3,4700.2,1.69175834]
[1755921335912,0.001,4700.3,4700.2,2.35175834]
[1755921336114,0.001,4700.3,4700.2,2.33048265]
[1755921336256,0.001,4700.3,4700.2,2.35175834]
[1755921336615,0.001,4700.3,4700.2,2.33048265]
[1755921336903,0.001,4700.3,4700.2,2.41568465]
[1755921337913,0.001,4700.3,4700.2,6.12368465]
[1755921338575,0.001,4700.3,4700.2,2.41568465]
[1755921338776,0.001,4700.3,4700.2,6.12368465]
[1755921339180,0.001,4700.3,4700.2,2.41568465]
[1755921339506,0.001,4700.3,4700.2,6.12368465]
[1755921341225,0.001,4700.8,4700.3,0.66]
[1755921341377,0.001,4700.8,4700.7,8.19592646]
[1755921341572,0.001,4700.8,4700.7,12.00932646]
[1755921341920,0.001,4700.8,4700.7,12.46222646]
[1755921342715,0.001,4700.8,4700.7,12.54741446]
[1755921342911,0.001,4700.8,4700.7,13.95214502]
[1755921344501,0.001,4700.8,4700.7,13.95114502]
[1755921347499,0.001,4701.4,4700.8,0.66]
[1755921347739,0.001,4701.4,4701.2,8.19592646]
[1755921347900,0.001,4701.4,4701.3,4.38627071]
[1755921348099,0.041,4701.8,4701.3,6.04552043]
[1755921348308,0.041,4701.8,4701.5,0.66]
[1755921348509,0.041,4701.8,4701.6,4.79196935]
[1755921348824,0.041,4701.8,4701.6,4.855874]
[1755921349027,0.041,4701.8,4701.6,5.289774]
[1755921349228,0.041,4701.8,4701.6,6.66668902]
[1755921349831,0.041,4701.8,4701.7,7.89122646]
[1755921350025,0.041,4701.8,4701.7,8.62442646]
[1755921350340,0.001,4702.2,4701.7,10.26042646]
[1755921350540,0.001,4702.2,4701.8,0.4339]
[1755921350853,0.001,4702.2,4702.1,1.0657]
[1755921351210,0.001,4702.2,4702.1,1.4996]
[1755921352828,4.14411524,4703.5,4702.2,0.66]
[1755921352829,0.33271524,4703.5,4702.2,0.66]
[1755921353031,0.1264,4703.8,4702.7,7.53052646]
[1755921353206,0.1264,4703.8,4702.7,11.33992646]
[1755921353414,0.1264,4703.8,4702.7,12.95120911]
[1755921353746,0.1264,4703.8,4702.7,13.58989711]
[1755921355147,0.02,4703.8,4702.8,0.66]
[1755921355447,0.02,4703.8,4703.7,7.23122646]
[1755921355655,0.02,4703.8,4703.7,7.33762646]
[1755921355858,0.119,4703.8,4703.7,0.1064]
[1755921356070,0.442,4703.8,4703.7,0.1064]
[1755921356434,0.442,4703.8,4702.8,7.23122646]
[1755921356648,0.1064,4703.4,4702.8,8.32464911]
[1755921356852,0.1012,4702.9,4702.8,8.32464911]
[1755921357854,0.1012,4702.9,4702.8,7.23122646]
[1755921358661,0.1012,4702.9,4702.4,10.93322646]
[1755921359822,0.1012,4702.9,4702.8,0.02]
[1755921364232,0.1064,4703.0,4702.8,0.02]
[1755921365258,0.1064,4703.0,4702.5,3.7]
[1755921365655,0.1064,4703.0,4702.6,0.4339]
[1755921366765,0.1064,4703.0,4702.7,0.4339]
[1755921367265,0.1064,4703.0,4702.9,7.53052646]
[1755921367569,0.02,4703.8,4702.9,8.07082646]
[1755921367570,0.1064,4703.6,4702.9,8.07082646]
[1755921367769,0.1064,4703.6,4703.4,7.23122646]
[1755921368545,0.1064,4703.6,4703.3,3.699]
[1755921368546,0.309,4703.5,4702.9,0.1064]
[1755921368772,0.1064,4703.0,4702.2,7.23122646]
[1755921368976,0.1064,4702.6,4702.2,7.89634746]
[1755921369581,0.1064,4702.6,4702.3,0.004]
[1755921370272,0.1064,4702.6,4702.3,0.4379]
[1755921370876,0.1064,4702.6,4702.3,4.1369]
[1755921371780,0.1064,4702.6,4702.4,0.4339]
[1755921372479,0.1064,4702.6,4702.3,3.703]
[1755921372480,0.1064,4702.6,4702.5,0.75446528]
[1755921373961,0.001,4703.0,4702.5,2.09624655]
[1755921374170,0.001,4703.0,4702.6,4.1319]
[1755921374375,0.001,4703.0,4702.9,0.2993]
[1755921374679,0.001,4703.0,4702.9,3.9963]
[1755921374868,0.001,4703.0,4702.9,5.83692077]
[1755921375049,0.1,4703.0,4702.9,3.697]
[1755921375382,0.2064,4703.0,4702.6,3.697]
[1755921375577,0.2064,4703.0,4702.5,3.697]
[1755921377070,0.2064,4703.0,4702.5,4.1309]
[1755921377887,0.1074,4703.0,4702.9,0.2993]
[1755921378058,0.001,4703.0,4702.9,0.69893]
[1755921378263,0.001,4703.0,4702.9,1.16919347]
[1755921378466,0.001,4703.0,4702.9,1.82919347]
[1755921378664,0.001,4703.0,4702.9,1.80793]
[1755921378984,0.001,4703.0,4702.9,1.82919347]
[1755921379390,0.001,4703.0,4702.9,3.57059347]
[1755921381299,0.001,4703.0,4702.9,3.54933]
[1755921381667,0.001,4703.0,4702.9,3.57059347]
[1755921381867,0.001,4703.0,4702.9,3.54933]
[1755921382385,0.001,4703.0,4702.9,3.57059347]
[1755921382563,0.001,4703.0,4702.9,3.54933]
[1755921383066,0.001,4703.0,4702.9,7.24433]
[1755921385469,0.001,4703.0,4702.9,3.54933]
[1755921385799,0.001,4703.0,4702.9,7.24433]
[1755921388484,0.001,4703.0,4702.9,3.54933]
[1755921388686,0.001,4703.0,4702.9,7.24333]
[1755921389206,0.001,4703.0,4702.9,7.34973]
[1755921390408,0.02,4703.8,4703.5,0.66]
[1755921390708,0.02,4703.8,4703.7,1.0649]
[1755921390893,0.02,4703.8,4703.7,4.7579]
[1755921391209,0.02,4703.8,4703.7,5.2069]
[1755921393694,0.02,4703.8,4703.7,1.5139]
[1755921393894,0.02,4703.8,4703.7,5.2059]
[1755921394098,0.02,4703.8,4703.7,6.57363791]
[1755921396584,0.02,4703.8,4703.7,6.65776791]
[1755921398616,0.001,4704.0,4703.7,6.65776791]
[1755921398788,0.001,4704.0,4703.8,2.743]
[1755921398987,0.001,4704.0,4703.8,3.0415]
[1755921399232,0.001,4704.0,4703.8,4.59379944]
[1755921399625,0.001,4704.0,4703.8,7.59379944]
[1755921399830,0.3252,4705.5,4704.7,7.23122646]
[1755921400139,0.119,4704.8,4704.7,11.02762646]
[1755921401295,0.119,4704.8,4704.7,11.35282646]
[1755921401833,0.1212,4704.8,4704.7,11.35282646]
[1755921402323,0.119,4704.8,4704.7,12.33724579]
[1755921403086,0.12,4704.8,4704.7,12.33724579]
[1755921404418,0.12,4704.8,4704.7,12.01204579]
[1755921404729,0.021,4704.8,4704.7,12.01204579]
[1755921405122,0.021,4704.8,4704.7,12.33724579]
[1755921405689,0.021,4704.8,4704.7,13.74474579]
[1755921407637,0.021,4704.8,4704.7,15.37874579]
[1755921408488,0.021,4704.8,4704.7,11.23974579]
[1755921408688,0.0242,4704.8,4704.7,9.29682646]
[1755921408904,0.0242,4704.8,4704.7,12.65962646]
[1755921409104,0.0242,4704.8,4704.7,12.74475146]
[1755921410030,0.021,4704.8,4704.7,13.58385146]
[1755921410213,0.021,4704.8,4704.7,14.15965146]
[1755921410416,0.021,4704.8,4704.7,15.57561661]
[1755921415868,0.001,4705.3,4704.8,0.66]
[1755921416161,0.001,4705.3,4705.2,8.17672646]
[1755921416323,0.001,4705.3,4705.2,11.86172646]
[1755921416512,0.001,4705.3,4705.2,7.99762646]
[1755921416709,0.001,4705.3,4705.2,12.53996911]
[1755921417344,0.001,4705.3,4705.2,12.86516911]
[1755921417749,0.001,4705.3,4705.2,13.15066911]
[1755921417918,0.001,4705.3,4705.2,13.62006911]
[1755921420152,0.001,4705.3,4705.2,13.15066911]
[1755921420656,0.001,4705.3,4705.2,13.62006911]
[1755921420950,0.3022,4705.3,4705.2,12.86416911]
[1755921421152,0.3022,4705.3,4705.2,9.18016911]
[1755921421334,0.3022,4705.3,4705.2,12.20316911]
[1755921423658,0.001,4705.3,4705.2,13.61806911]
[1755921426261,0.001,4705.3,4705.2,13.14866911]
[1755921426644,0.001,4705.3,4705.2,13.61806911]
[1755921428378,0.001,4705.3,4705.2,12.86316911]
[1755921430555,0.0042,4705.3,4705.2,12.86316911]
[1755921430734,0.0042,4705.3,4705.2,12.86116911]
[1755921432449,0.0042,4705.3,4705.2,12.20116911]
[1755921432857,0.0042,4705.3,4705.2,12.20016911]
[1755921434064,0.0042,4705.3,4705.2,8.52016911]
[1755921434269,0.0042,4705.3,4705.2,12.20016911]
[1755921434637,0.0042,4705.3,4705.2,0.3252]
[1755921434839,0.0042,4705.3,4703.8,0.17759988]
[1755921434840,0.3294,4705.3,4704.6,7.23122646]
[1755921435138,0.4358,4705.3,4704.7,0.638472]
[1755921435452,0.4358,4705.3,4704.3,3.679]
[1755921435649,0.3252,4705.2,4704.5,0.1064]
[1755921435847,0.1064,4704.3,4704.0,3.679]
[1755921436074,0.3012,4704.1,4704.0,4.84652185]
[1755921441753,0.3012,4704.1,4704.0,1.16752185]
[1755921442087,0.3012,4704.1,4704.0,3.678]
[1755921443404,0.3012,4704.1,4703.8,0.3212]
[1755921443548,0.1064,4703.9,4703.8,0.02]
[1755921443747,0.4041,4703.9,4703.8,0.02]
[1755921443959,0.4106,4703.9,4703.8,0.02]
[1755921449153,0.4106,4703.9,4703.8,124.670193]
[1755921452497,0.4041,4703.9,4703.8,124.670193]
[1755921452900,5.52999553,4703.9,4703.8,124.670193]
[1755921453069,5.64979553,4703.9,4703.8,124.670193]
[1755921453970,5.64979553,4703.9,4703.8,124.674193]
[1755921454207,5.98250122,4703.9,4703.8,124.674193]
[1755921454799,9.65850122,4703.9,4703.8,124.674193]
[1755921456706,9.32579553,4703.9,4703.8,124.674193]
[1755921457715,7.1999,4703.9,4703.8,124.674193]
[1755921459109,9.32579553,4703.9,4703.8,124.674193]
[1755921459822,7.1999,4703.9,4703.8,124.674193]
[1755921460780,9.32579553,4703.9,4703.8,124.674193]
[1755921461217,7.0801,4703.9,4703.8,124.674193]
[1755921461383,0.1064,4703.9,4703.8,126.12854162]
[1755921461579,3.7804,4703.9,4703.8,126.12854162]
[1755921461984,3.7804,4703.9,4703.8,125.410593]
[1755921464388,4.0781,4703.9,4703.8,124.674193]
[1755921464612,4.113,4703.9,4703.8,124.674193]
[1755921465524,6.20399553,4703.9,4703.8,124.674193]
[1755921465821,6.23889553,4703.9,4703.8,124.674193]
[1755921466589,6.20399553,4703.9,4703.8,124.674193]
[1755921466821,4.0781,4703.9,4703.8,124.674193]
[1755921467202,6.20399553,4703.9,4703.8,124.674193]
[1755921467718,4.0781,4703.9,4703.8,124.674193]
[1755921471219,6.20399553,4703.9,4703.8,124.674193]
[1755921472525,4.0781,4703.9,4703.8,124.674193]
[1755921474432,3.7804,4703.9,4703.8,124.674193]
[1755921475416,3.7804,4703.9,4703.8,125.433993]
[1755921476729,3.8794,4703.9,4703.8,124.674193]
[1755921479021,7.2684,4703.9,4703.8,124.674193]
[1755921479535,9.39429553,4703.9,4703.8,124.674193]
[1755921480236,7.2684,4703.9,4703.8,124.674193]
[1755921480443,13.5089287,4703.9,4703.8,124.674193]
[1755921480740,13.8341287,4703.9,4703.8,124.674193]
[1755921481035,13.5089287,4703.9,4703.8,124.674193]
[1755921483944,13.84165188,4703.9,4703.8,124.674193]
[1755921484149,14.16685188,4703.9,4703.8,124.674193]
[1755921485028,10.77785188,4703.9,4703.8,121.285193]
[1755921486611,18.00907834,4703.9,4703.8,121.285193]
[1755921486807,24.87368846,4703.9,4703.8,121.285193]
[1755921487012,27.6768079,4703.9,4703.8,29.64190175]
[1755921487221,27.87411527,4703.9,4703.8,29.64190175]
[1755921487533,21.40004834,4703.9,4703.8,29.64190175]
[1755921487737,28.6312748,4703.9,4703.8,29.64190175]
[1755921487948,28.63119951,4703.9,4703.8,29.64190175]
[1755921488344,27.87403998,4703.9,4703.8,29.64190175]
[1755921488852,28.62899951,4703.9,4703.8,29.64190175]
[1755921489056,27.87183998,4703.9,4703.8,29.64190175]
[1755921489255,27.75352665,4703.9,4703.8,29.64190175]
[1755921489456,2.78603112,4703.6,4703.5,0.004]
[1755921489756,18.61016006,4703.6,4703.5,0.004]
[1755921489963,19.60009012,4703.6,4703.5,0.004]
[1755921490257,19.59972356,4703.6,4703.5,0.004]
[1755921490454,5.02916673,4703.3,4703.0,0.004]
[1755921490625,12.3638836,4703.1,4703.0,0.004]
[1755921490826,16.1218627,4703.1,4703.0,0.004]
[1755921491055,16.4404627,4703.1,4703.0,0.004]
[1755921491260,16.77330882,4703.1,4703.0,0.004]
[1755921491460,8.02934757,4702.9,4702.8,0.024]
[1755921491659,18.3381349,4702.9,4702.8,0.024]
[1755921491963,18.4483349,4702.9,4702.8,0.024]
[1755921492259,17.88202667,4702.9,4702.8,0.024]
[1755921492556,18.44805578,4702.9,4702.8,0.024]
[1755921492764,17.88202667,4702.9,4702.8,0.024]
[1755921492926,17.88202667,4702.9,4702.8,0.02]
[1755921493127,17.88202667,4702.9,4702.8,1e-08]
[1755921493531,18.04228478,4702.9,4702.8,1e-08]
[1755921494449,18.60761266,4702.9,4702.8,1e-08]
[1755921495535,2.78652844,4702.5,4701.4,0.004]
[1755921495865,19.19058807,4702.5,4701.4,0.004]
[1755921496235,19.63566926,4702.5,4701.4,0.004]
[1755921496436,5.78657366,4702.4,4701.4,0.004]
[1755921496663,6.55100683,4702.4,4701.4,0.004]
[1755921496967,6.66520683,4702.4,4701.4,0.004]
[1755921497139,6.75044783,4702.4,4701.4,0.004]
[1755921497345,13.75044783,4702.4,4701.4,0.004]
[1755921499235,13.63624783,4702.4,4701.4,0.4466]
[1755921501769,15.87924783,4702.4,4701.4,0.4466]
[1755921503970,15.87924783,4702.4,4701.4,0.004]
[1755921504170,13.75054783,4702.4,4701.4,0.004]
[1755921505038,13.75054783,4702.4,4702.3,1e-08]
[1755921505039,15.99354783,4702.4,4702.3,1e-08]
[1755921505275,16.75494567,4702.4,4702.3,1e-08]
[1755921505443,16.44465929,4702.4,4702.3,1e-08]
[1755921505652,16.75495304,4702.4,4702.3,1e-08]
[1755921506166,15.99354783,4702.4,4702.3,1e-08]
[1755921506368,8.02975457,4702.0,4701.9,1e-08]
[1755921506544,17.1366142,4702.0,4701.9,1e-08]
[1755921506749,17.2430142,4702.0,4701.9,1e-08]
[1755921506955,17.88945073,4702.0,4701.9,1e-08]
[1755921507167,5.7867998,4701.9,4701.8,0.00400001]
[1755921507371,6.55283297,4701.9,4701.8,0.00400001]
[1755921508594,13.54656556,4702.0,4701.8,0.30430001]
[1755921508595,0.43933653,4702.0,4701.8,0.30430001]
[1755921508790,3.188,4701.9,4701.8,0.74690001]
[1755921508939,3.1378,4701.9,4701.8,0.74690001]
[1755921509282,3.2442,4701.9,4701.8,0.74690001]
[1755921518080,3.2442,4701.9,4701.8,0.30430001]